[Event "*** Titled Tuesday Blitz"]
[Site "Chess.com"]
[Date "2020.10.20"]
[Round "4"]
[White "tlomigtlis"]
[Black "oogee"]
[Result "1-0"]
[WhiteElo "2563"]
[BlackElo "2163"]
[TimeControl "180+1"]
[EndTime "10:41:08 PDT"]
[Termination "tlomigtlis won on time"]

1. d4 {[%clk 0:03:00.9]} 1... Nf6 {[%clk 0:02:59.1]} 2. c4 {[%clk 0:03:01]} 2...
g6 {[%clk 0:02:58.7]} 3. Nc3 {[%clk 0:03:01.1]} 3... Bg7 {[%clk 0:02:58.4]} 4.
g3 {[%clk 0:03:00.5]} 4... O-O {[%clk 0:02:57.9]} 5. Bg2 {[%clk 0:03:01]} 5...
d6 {[%clk 0:02:57.8]} 6. Nf3 {[%clk 0:03:01.5]} 6... Nc6 {[%clk 0:02:57.4]} 7.
O-O {[%clk 0:03:01.9]} 7... e5 {[%clk 0:02:55.7]} 8. d5 {[%clk 0:03:02.4]} 8...
Nb8 {[%clk 0:02:49.8]} 9. e4 {[%clk 0:03:02.6]} 9... a5 {[%clk 0:02:48.9]} 10.
Ne1 {[%clk 0:03:02.9]} 10... Na6 {[%clk 0:02:48.2]} 11. Nd3 {[%clk 0:03:03]}
11... Nd7 {[%clk 0:02:47.2]} 12. h3 {[%clk 0:03:01.6]} 12... f5 {[%clk
0:02:45.6]} 13. f4 {[%clk 0:03:01.2]} 13... Nac5 {[%clk 0:02:39.5]} 14. fxe5
{[%clk 0:02:53.6]} 14... Nxd3 {[%clk 0:02:27.8]} 15. Qxd3 {[%clk 0:02:54.5]}
15... Nxe5 {[%clk 0:02:26.9]} 16. Qe2 {[%clk 0:02:54.5]} 16... b6 {[%clk
0:02:20.6]} 17. Be3 {[%clk 0:02:47.8]} 17... Ba6 {[%clk 0:01:47.9]} 18. Nb5
{[%clk 0:02:34.6]} 18... Qd7 {[%clk 0:01:42.2]} 19. a4 {[%clk 0:02:27.4]} 19...
Rae8 {[%clk 0:01:37.6]} 20. Kh2 {[%clk 0:02:12.5]} 20... Bc8 {[%clk 0:01:27.1]}
21. Nd4 {[%clk 0:01:48.4]} 21... fxe4 {[%clk 0:01:18.2]} 22. Ne6 {[%clk
0:01:40.5]} 22... Rf3 {[%clk 0:01:14.4]} 23. Bd4 {[%clk 0:01:29.1]} 23... Rxe6
{[%clk 0:01:08.2]} 24. dxe6 {[%clk 0:01:28.3]} 24... Qxe6 {[%clk 0:01:05.3]} 25.
Qxe4 {[%clk 0:01:00.1]} 25... Ng4+ {[%clk 0:00:42.4]} 26. Qxg4 {[%clk 0:00:57]}
26... Qxg4 {[%clk 0:00:40.8]} 27. hxg4 {[%clk 0:00:57.9]} 27... Rxf1 {[%clk
0:00:40.4]} 28. Bd5+ {[%clk 0:00:41.6]} 28... Rf7 {[%clk 0:00:28.5]} 29. Rf1
{[%clk 0:00:41.5]} 29... Bxd4 {[%clk 0:00:27.1]} 30. Rxf7 {[%clk 0:00:41.1]}
30... c6 {[%clk 0:00:12.4]} 31. Rf4+ {[%clk 0:00:40.7]} 31... cxd5 {[%clk
0:00:11.4]} 32. Rxd4 {[%clk 0:00:41.6]} 32... dxc4 {[%clk 0:00:10.8]} 33. Rxc4
{[%clk 0:00:33.7]} 33... Be6 {[%clk 0:00:10.8]} 34. Rc6 {[%clk 0:00:33.1]} 34...
Bxg4 {[%clk 0:00:09.6]} 35. Rxd6 {[%clk 0:00:31.2]} 35... Be2 {[%clk 0:00:07.6]}
36. Rxb6 {[%clk 0:00:30.9]} 36... Bd1 {[%clk 0:00:07.4]} 37. b3 {[%clk
0:00:30.9]} 37... Bc2 {[%clk 0:00:03.5]} 38. Rb7 {[%clk 0:00:30.2]} 1-0

[Event "*** Titled Tuesday Blitz"]
[Site "Chess.com"]
[Date "2020.10.20"]
[Round "4"]
[White "Flawless_Fighter"]
[Black "ViktoriyaTarasova"]
[Result "1-0"]
[WhiteElo "2569"]
[BlackElo "2251"]
[TimeControl "180+1"]
[EndTime "10:41:09 PDT"]
[Termination "Flawless_Fighter won by resignation"]

1. e4 {[%clk 0:03:00.9]} 1... e5 {[%clk 0:02:57.3]} 2. Nf3 {[%clk 0:03:00.8]}
2... Nc6 {[%clk 0:02:57.5]} 3. Bb5 {[%clk 0:03:01.3]} 3... Nf6 {[%clk 0:02:57]}
4. d3 {[%clk 0:03:00.4]} 4... Bc5 {[%clk 0:02:56]} 5. Bxc6 {[%clk 0:02:59.4]}
5... dxc6 {[%clk 0:02:55.9]} 6. h3 {[%clk 0:02:58.2]} 6... Bd6 {[%clk
0:02:52.9]} 7. Nbd2 {[%clk 0:02:57.2]} 7... Nd7 {[%clk 0:02:52.2]} 8. Nc4 {[%clk
0:02:57.2]} 8... O-O {[%clk 0:02:48.9]} 9. O-O {[%clk 0:02:55.7]} 9... Qe7
{[%clk 0:02:48.6]} 10. b3 {[%clk 0:02:55.1]} 10... f6 {[%clk 0:02:47.6]} 11. a4
{[%clk 0:02:54.3]} 11... c5 {[%clk 0:02:45.9]} 12. Ne3 {[%clk 0:02:53.3]} 12...
Qf7 {[%clk 0:02:44.4]} 13. Nf5 {[%clk 0:02:52.1]} 13... Re8 {[%clk 0:02:40.6]}
14. Bh6 {[%clk 0:02:44.5]} 14... Bf8 {[%clk 0:02:36.5]} 15. Be3 {[%clk
0:02:38.2]} 15... Nb8 {[%clk 0:02:16.8]} 16. Nd2 {[%clk 0:02:32.9]} 16... Nc6
{[%clk 0:02:13.3]} 17. f4 {[%clk 0:02:26.9]} 17... Bxf5 {[%clk 0:01:57.2]} 18.
exf5 {[%clk 0:02:27.8]} 18... exf4 {[%clk 0:01:49.2]} 19. Bxf4 {[%clk
0:02:27.6]} 19... Bd6 {[%clk 0:01:49.8]} 20. Ne4 {[%clk 0:02:17.9]} 20... Bxf4
{[%clk 0:01:44.9]} 21. Rxf4 {[%clk 0:02:18.8]} 21... b6 {[%clk 0:01:45.3]} 22.
Qg4 {[%clk 0:02:15.3]} 22... Nd4 {[%clk 0:01:34.1]} 23. Rf2 {[%clk 0:02:15.1]}
23... Rad8 {[%clk 0:01:15.4]} 24. Raf1 {[%clk 0:02:09.4]} 24... Nc6 {[%clk
0:01:14.3]} 25. Qg3 {[%clk 0:02:07.7]} 25... Ne5 {[%clk 0:01:08.4]} 26. Rf4
{[%clk 0:02:07.2]} 26... Rd4 {[%clk 0:00:51.4]} 27. Rh4 {[%clk 0:02:04.6]} 27...
a6 {[%clk 0:00:42]} 28. Rff4 {[%clk 0:01:51.6]} 28... Nd7 {[%clk 0:00:29.3]} 29.
Kh2 {[%clk 0:01:45.1]} 29... Nf8 {[%clk 0:00:26.8]} 30. Rfg4 {[%clk 0:01:42.4]}
30... Kh8 {[%clk 0:00:26]} 31. Rg6 {[%clk 0:01:31.4]} 31... Rd5 {[%clk
0:00:20.4]} 32. Rh5 {[%clk 0:01:07.4]} 32... Rxf5 {[%clk 0:00:15.5]} 33. Rxg7
{[%clk 0:01:02.4]} 33... Qxg7 {[%clk 0:00:15.4]} 34. Rxf5 {[%clk 0:01:01.8]}
34... Re6 {[%clk 0:00:06]} 35. Qf3 {[%clk 0:00:51.8]} 35... Nd7 {[%clk
0:00:05.5]} 36. Qh5 {[%clk 0:00:49.5]} 36... Kg8 {[%clk 0:00:04.2]} 37. Rd5
{[%clk 0:00:47.3]} 37... Re5 {[%clk 0:00:04]} 38. Rxe5 {[%clk 0:00:42.9]} 38...
Nxe5 {[%clk 0:00:03.6]} 39. Qe8+ {[%clk 0:00:41.1]} 39... Qf8 {[%clk 0:00:04.1]}
40. Nxf6+ {[%clk 0:00:41.8]} 40... Kg7 {[%clk 0:00:04.3]} 41. Nh5+ {[%clk
0:00:41]} 41... Kg8 {[%clk 0:00:03.6]} 42. Qxe5 {[%clk 0:00:41.6]} 1-0

[Event "*** Titled Tuesday Blitz"]
[Site "Chess.com"]
[Date "2020.10.20"]
[Round "4"]
[White "natelleka"]
[Black "ajgreen"]
[Result "0-1"]
[WhiteElo "2187"]
[BlackElo "2402"]
[TimeControl "180+1"]
[EndTime "10:41:09 PDT"]
[Termination "ajgreen won on time"]

1. e4 {[%clk 0:03:00.9]} 1... c5 {[%clk 0:03:00]} 2. Nf3 {[%clk 0:03:01.1]} 2...
e6 {[%clk 0:03:00.9]} 3. d4 {[%clk 0:03:01.6]} 3... cxd4 {[%clk 0:03:01.8]} 4.
Nxd4 {[%clk 0:03:02.1]} 4... Nc6 {[%clk 0:03:02.7]} 5. Nb5 {[%clk 0:03:01.4]}
5... Nf6 {[%clk 0:03:03.2]} 6. N1c3 {[%clk 0:03:01.2]} 6... Bc5 {[%clk
0:03:03.2]} 7. Nd6+ {[%clk 0:02:52.4]} 7... Ke7 {[%clk 0:03:00.9]} 8. Nxc8+
{[%clk 0:02:49.6]} 8... Rxc8 {[%clk 0:03:01.8]} 9. Be2 {[%clk 0:02:47.1]} 9...
Re8 {[%clk 0:02:53.7]} 10. O-O {[%clk 0:02:41.9]} 10... Kf8 {[%clk 0:02:50.5]}
11. Kh1 {[%clk 0:02:41.8]} 11... d5 {[%clk 0:02:50.2]} 12. exd5 {[%clk
0:02:39.5]} 12... Nxd5 {[%clk 0:02:50]} 13. Ne4 {[%clk 0:02:20.8]} 13... Be7
{[%clk 0:02:49.3]} 14. a3 {[%clk 0:02:11.2]} 14... Nf6 {[%clk 0:02:47.3]} 15.
Ng3 {[%clk 0:02:02.2]} 15... Qxd1 {[%clk 0:02:45.3]} 16. Rxd1 {[%clk 0:02:00.4]}
16... Red8 {[%clk 0:02:45.5]} 17. Be3 {[%clk 0:01:56.4]} 17... Nd5 {[%clk
0:02:43.4]} 18. Bd2 {[%clk 0:01:28.6]} 18... Nd4 {[%clk 0:02:40.4]} 19. Bd3
{[%clk 0:00:38.3]} 19... Nxc2 {[%clk 0:02:39.8]} 20. Rac1 {[%clk 0:00:36.8]}
20... Nd4 {[%clk 0:02:37.1]} 21. Be4 {[%clk 0:00:29.7]} 21... Nb3 {[%clk
0:02:34.4]} 22. Rxc8 {[%clk 0:00:27.3]} 22... Rxc8 {[%clk 0:02:32.3]} 23. Bxd5
{[%clk 0:00:20.5]} 23... Nxd2 {[%clk 0:02:26.9]} 24. Bxb7 {[%clk 0:00:19.4]}
24... Rc2 {[%clk 0:02:16.5]} 25. b4 {[%clk 0:00:17.8]} 25... Nc4 {[%clk
0:02:13.3]} 26. h3 {[%clk 0:00:12.8]} 26... Nxa3 {[%clk 0:02:06.8]} 27. Ra1
{[%clk 0:00:11.2]} 27... Bxb4 {[%clk 0:02:03.4]} 28. Ne4 {[%clk 0:00:09.4]}
28... a5 {[%clk 0:01:58]} 29. Kg1 {[%clk 0:00:08]} 29... h6 {[%clk 0:01:55.5]}
30. Kf1 {[%clk 0:00:07.7]} 30... Ke7 {[%clk 0:01:55.7]} 31. Ba6 {[%clk
0:00:06.1]} 31... f5 {[%clk 0:01:54.4]} 32. Ng3 {[%clk 0:00:03.7]} 32... g6
{[%clk 0:01:46.1]} 33. Ne2 {[%clk 0:00:03.8]} 33... e5 {[%clk 0:01:45.1]} 34.
Nc1 {[%clk 0:00:03.8]} 34... e4 {[%clk 0:01:35.5]} 35. Nb3 {[%clk 0:00:03.3]}
35... a4 {[%clk 0:01:19.5]} 36. Nd4 {[%clk 0:00:03.1]} 36... Rd2 {[%clk
0:01:13.7]} 37. Nc6+ {[%clk 0:00:02.8]} 37... Kd6 {[%clk 0:01:13.9]} 38. Nxb4
{[%clk 0:00:03.4]} 38... Nc2 {[%clk 0:00:49]} 39. Ra2 {[%clk 0:00:03.5]} 39...
Rd1+ {[%clk 0:00:45.7]} 40. Ke2 {[%clk 0:00:03.6]} 40... Nxb4 {[%clk 0:00:46.2]}
41. Rxa4 {[%clk 0:00:01.9]} 41... Rd4 {[%clk 0:00:46.2]} 0-1

[Event "*** Titled Tuesday Blitz"]
[Site "Chess.com"]
[Date "2020.10.20"]
[Round "4"]
[White "PotapovaM"]
[Black "kiborg1987"]
[Result "0-1"]
[WhiteElo "2524"]
[BlackElo "2821"]
[TimeControl "180+1"]
[EndTime "10:41:11 PDT"]
[Termination "kiborg1987 won by checkmate"]

1. d4 {[%clk 0:03:00.9]} 1... d6 {[%clk 0:02:58.9]} 2. e4 {[%clk 0:03:00.9]}
2... Nf6 {[%clk 0:02:58]} 3. Nc3 {[%clk 0:03:01.5]} 3... e5 {[%clk 0:02:58.7]}
4. Nf3 {[%clk 0:02:57.4]} 4... Nbd7 {[%clk 0:02:58.4]} 5. Bc4 {[%clk 0:02:57.3]}
5... Be7 {[%clk 0:02:58.7]} 6. O-O {[%clk 0:02:57.4]} 6... O-O {[%clk
0:02:59.4]} 7. a4 {[%clk 0:02:57.9]} 7... c6 {[%clk 0:02:59.6]} 8. Re1 {[%clk
0:02:58.1]} 8... a5 {[%clk 0:03:00]} 9. h3 {[%clk 0:02:58]} 9... exd4 {[%clk
0:03:00.6]} 10. Nxd4 {[%clk 0:02:58.2]} 10... Nc5 {[%clk 0:03:01.5]} 11. Bf4
{[%clk 0:02:54]} 11... Be6 {[%clk 0:03:01.1]} 12. Nxe6 {[%clk 0:02:50.7]} 12...
fxe6 {[%clk 0:03:02]} 13. e5 {[%clk 0:02:47.1]} 13... d5 {[%clk 0:02:48.1]} 14.
exf6 {[%clk 0:02:29.5]} 14... Bxf6 {[%clk 0:02:49]} 15. Bg3 {[%clk 0:00:44.2]}
15... dxc4 {[%clk 0:02:40.1]} 16. Bd6 {[%clk 0:00:39.6]} 16... Be7 {[%clk
0:02:00.8]} 17. Bxe7 {[%clk 0:00:39.2]} 17... Qxe7 {[%clk 0:02:01.7]} 18. Qd4
{[%clk 0:00:39.2]} 18... Rad8 {[%clk 0:01:31.2]} 19. Qxc4 {[%clk 0:00:32.9]}
19... Kh8 {[%clk 0:01:26.7]} 20. Re2 {[%clk 0:00:32.3]} 20... b6 {[%clk
0:01:19.2]} 21. Rae1 {[%clk 0:00:32.7]} 21... Qf6 {[%clk 0:01:19]} 22. b3 {[%clk
0:00:29.2]} 22... Rd4 {[%clk 0:01:17.2]} 23. Ne4 {[%clk 0:00:06.7]} 23... Nxe4
{[%clk 0:01:13.1]} 24. Qxc6 {[%clk 0:00:06.7]} 24... Nxf2 {[%clk 0:00:55.7]} 25.
Qxb6 {[%clk 0:00:03.6]} 25... Rf4 {[%clk 0:00:21]} 26. Rxe6 {[%clk 0:00:03.4]}
26... Qg5 {[%clk 0:00:21.4]} 27. Kh2 {[%clk 0:00:02.5]} 27... Nxh3 {[%clk
0:00:19.4]} 28. Qc6 {[%clk 0:00:01.8]} 28... Nf2 {[%clk 0:00:18.7]} 29. Re8
{[%clk 0:00:01.6]} 29... Ng4+ {[%clk 0:00:18.9]} 30. Kg1 {[%clk 0:00:01.5]}
30... Qh4 {[%clk 0:00:18.6]} 31. Rxf8+ {[%clk 0:00:01.5]} 31... Rxf8 {[%clk
0:00:19.5]} 32. Qd6 {[%clk 0:00:01.4]} 32... Qf2+ {[%clk 0:00:18.4]} 33. Kh1
{[%clk 0:00:01.4]} 33... Qxe1# {[%clk 0:00:18.7]} 0-1

[Event "*** Titled Tuesday Blitz"]
[Site "Chess.com"]
[Date "2020.10.20"]
[Round "4"]
[White "fabianvivasz"]
[Black "Blitzstream"]
[Result "0-1"]
[WhiteElo "2447"]
[BlackElo "2667"]
[TimeControl "180+1"]
[EndTime "10:41:11 PDT"]
[Termination "Blitzstream won on time"]

1. e4 {[%clk 0:02:59.5]} 1... d5 {[%clk 0:02:59.9]} 2. exd5 {[%clk 0:02:59.2]}
2... Qxd5 {[%clk 0:02:59.7]} 3. Nc3 {[%clk 0:02:59.3]} 3... Qa5 {[%clk
0:02:59.2]} 4. d4 {[%clk 0:02:59.2]} 4... Nf6 {[%clk 0:02:58.7]} 5. Bd2 {[%clk
0:02:58.9]} 5... c6 {[%clk 0:02:57.6]} 6. Bd3 {[%clk 0:02:59.1]} 6... Bg4 {[%clk
0:02:56.6]} 7. Ne4 {[%clk 0:02:58.8]} 7... Bxd1 {[%clk 0:02:41.2]} 8. Nxf6+
{[%clk 0:02:58.2]} 8... gxf6 {[%clk 0:02:40.4]} 9. Bxa5 {[%clk 0:02:58]} 9...
Bh5 {[%clk 0:02:40.1]} 10. f4 {[%clk 0:02:53.7]} 10... e6 {[%clk 0:02:36.1]} 11.
f5 {[%clk 0:02:43.9]} 11... Nd7 {[%clk 0:02:16]} 12. h3 {[%clk 0:02:35]} 12...
exf5 {[%clk 0:02:15.1]} 13. Ne2 {[%clk 0:02:13.6]} 13... Bd6 {[%clk 0:02:08.6]}
14. O-O {[%clk 0:02:06.2]} 14... b6 {[%clk 0:01:53.8]} 15. Bd2 {[%clk
0:01:59.5]} 15... O-O-O {[%clk 0:01:53.7]} 16. Bf4 {[%clk 0:01:44.8]} 16... Kc7
{[%clk 0:01:52.8]} 17. Bxd6+ {[%clk 0:01:37.3]} 17... Kxd6 {[%clk 0:01:53.7]}
18. Ng3 {[%clk 0:01:37.6]} 18... Bg6 {[%clk 0:01:51.6]} 19. Nxf5+ {[%clk
0:01:15.4]} 19... Kc7 {[%clk 0:01:51.1]} 20. Rae1 {[%clk 0:01:09.3]} 20... Rhe8
{[%clk 0:01:49.7]} 21. g4 {[%clk 0:00:56.7]} 21... Nf8 {[%clk 0:01:48.9]} 22. c3
{[%clk 0:00:52.4]} 22... Ne6 {[%clk 0:01:47.1]} 23. Kh2 {[%clk 0:00:46.2]} 23...
c5 {[%clk 0:01:44.8]} 24. Bb5 {[%clk 0:00:40.4]} 24... Rh8 {[%clk 0:01:38.4]}
25. Rd1 {[%clk 0:00:27.5]} 25... h5 {[%clk 0:01:29.6]} 26. gxh5 {[%clk
0:00:21.3]} 26... Rxh5 {[%clk 0:01:30.5]} 27. Ng3 {[%clk 0:00:21.2]} 27... Rh4
{[%clk 0:01:04.7]} 28. Rxf6 {[%clk 0:00:17.4]} 28... cxd4 {[%clk 0:00:55]} 29.
cxd4 {[%clk 0:00:15.9]} 29... Nxd4 {[%clk 0:00:55.9]} 30. Rc1+ {[%clk
0:00:14.4]} 30... Kb8 {[%clk 0:00:54.7]} 31. Ba6 {[%clk 0:00:14.2]} 31... Rdh8
{[%clk 0:00:48.6]} 32. Kg2 {[%clk 0:00:13.4]} 32... Rxh3 {[%clk 0:00:41.1]} 33.
Kf2 {[%clk 0:00:02]} 33... Rh2+ {[%clk 0:00:39.4]} 34. Ke3 {[%clk 0:00:02.3]}
34... Nc2+ {[%clk 0:00:40]} 35. Kf4 {[%clk 0:00:01]} 35... Nb4 {[%clk
0:00:29.8]} 0-1

[Event "*** Titled Tuesday Blitz"]
[Site "Chess.com"]
[Date "2020.10.20"]
[Round "4"]
[White "Fh2411"]
[Black "Belka1989"]
[Result "1-0"]
[WhiteElo "2515"]
[BlackElo "2290"]
[TimeControl "180+1"]
[EndTime "10:41:11 PDT"]
[Termination "Fh2411 won on time"]

1. Nf3 {[%clk 0:02:56.6]} 1... d5 {[%clk 0:02:59.8]} 2. d4 {[%clk 0:02:56.3]}
2... Nf6 {[%clk 0:02:59.7]} 3. Bf4 {[%clk 0:02:56]} 3... c5 {[%clk 0:02:56.6]}
4. e3 {[%clk 0:02:56.4]} 4... Nc6 {[%clk 0:02:56.9]} 5. Nbd2 {[%clk 0:02:57]}
5... Qb6 {[%clk 0:02:45.4]} 6. dxc5 {[%clk 0:02:56.9]} 6... Qxc5 {[%clk
0:02:43.1]} 7. a3 {[%clk 0:02:56.6]} 7... Bg4 {[%clk 0:02:35.8]} 8. b4 {[%clk
0:02:56.5]} 8... Qc3 {[%clk 0:02:17]} 9. Bb5 {[%clk 0:02:45.6]} 9... Ne4 {[%clk
0:01:46.5]} 10. O-O {[%clk 0:02:03.9]} 10... Nxd2 {[%clk 0:01:39]} 11. Qxd2
{[%clk 0:02:00.9]} 11... Qxd2 {[%clk 0:01:39.1]} 12. Nxd2 {[%clk 0:02:01.8]}
12... a6 {[%clk 0:01:31.3]} 13. Bxc6+ {[%clk 0:01:55.2]} 13... bxc6 {[%clk
0:01:32.2]} 14. c4 {[%clk 0:01:54.7]} 14... e6 {[%clk 0:01:25.8]} 15. f3 {[%clk
0:01:35.8]} 15... Bh5 {[%clk 0:01:19]} 16. Rfc1 {[%clk 0:01:24.8]} 16... f6
{[%clk 0:01:06.6]} 17. Bc7 {[%clk 0:01:09.1]} 17... Kd7 {[%clk 0:00:59.4]} 18.
Ba5 {[%clk 0:01:08.6]} 18... Bd6 {[%clk 0:00:54.8]} 19. Nb3 {[%clk 0:01:04.6]}
19... e5 {[%clk 0:00:45.8]} 20. Bb6 {[%clk 0:00:56.1]} 20... Rhc8 {[%clk
0:00:33.9]} 21. Bc5 {[%clk 0:00:55.7]} 21... Bc7 {[%clk 0:00:30.4]} 22. Rd1
{[%clk 0:00:53.8]} 22... Ke6 {[%clk 0:00:27.6]} 23. Rac1 {[%clk 0:00:44.4]}
23... Bf7 {[%clk 0:00:22.5]} 24. Nd2 {[%clk 0:00:31.3]} 24... a5 {[%clk
0:00:18.6]} 25. b5 {[%clk 0:00:30.5]} 25... cxb5 {[%clk 0:00:19]} 26. cxb5
{[%clk 0:00:22.5]} 26... Bd8 {[%clk 0:00:19.2]} 27. a4 {[%clk 0:00:22.2]} 27...
Rc7 {[%clk 0:00:10.8]} 28. Nb3 {[%clk 0:00:18.4]} 28... Rac8 {[%clk 0:00:10]}
29. Ba3 {[%clk 0:00:16.9]} 29... Rxc1 {[%clk 0:00:09.6]} 30. Rxc1 {[%clk
0:00:17.2]} 30... Rxc1+ {[%clk 0:00:09.8]} 31. Bxc1 {[%clk 0:00:18.1]} 31... d4
{[%clk 0:00:03.4]} 32. exd4 {[%clk 0:00:17]} 32... Kd5 {[%clk 0:00:02.7]} 33.
Bd2 {[%clk 0:00:16.3]} 1-0

[Event "*** Titled Tuesday Blitz"]
[Site "Chess.com"]
[Date "2020.10.20"]
[Round "4"]
[White "Zmof"]
[Black "AndrewDGreen"]
[Result "0-1"]
[WhiteElo "2166"]
[BlackElo "2390"]
[TimeControl "180+1"]
[EndTime "10:41:13 PDT"]
[Termination "AndrewDGreen won by resignation"]

1. e4 {[%clk 0:02:59.7]} 1... c5 {[%clk 0:02:53.2]} 2. Nf3 {[%clk 0:02:59]} 2...
g6 {[%clk 0:02:53.1]} 3. Bc4 {[%clk 0:02:57.5]} 3... Bg7 {[%clk 0:02:52.6]} 4.
O-O {[%clk 0:02:56.1]} 4... Nc6 {[%clk 0:02:51.5]} 5. c3 {[%clk 0:02:55.8]} 5...
e6 {[%clk 0:02:51.1]} 6. d4 {[%clk 0:02:55.4]} 6... cxd4 {[%clk 0:02:52]} 7.
Nxd4 {[%clk 0:02:55.3]} 7... Nxd4 {[%clk 0:02:42.9]} 8. cxd4 {[%clk 0:02:54.6]}
8... d5 {[%clk 0:02:41.9]} 9. exd5 {[%clk 0:02:52.1]} 9... exd5 {[%clk
0:02:42.8]} 10. Re1+ {[%clk 0:02:52.6]} 10... Ne7 {[%clk 0:02:42.2]} 11. Bg5
{[%clk 0:02:46.3]} 11... f6 {[%clk 0:02:39.1]} 12. Bb5+ {[%clk 0:02:44.5]} 12...
Bd7 {[%clk 0:02:38.3]} 13. Bxd7+ {[%clk 0:02:42.4]} 13... Qxd7 {[%clk
0:02:36.8]} 14. Bf4 {[%clk 0:02:36.7]} 14... O-O {[%clk 0:02:33.4]} 15. Nc3
{[%clk 0:02:36.4]} 15... g5 {[%clk 0:02:27.3]} 16. Bg3 {[%clk 0:02:31.2]} 16...
Nf5 {[%clk 0:02:25.3]} 17. Rc1 {[%clk 0:02:17]} 17... Rfe8 {[%clk 0:02:21.7]}
18. Qb3 {[%clk 0:02:07.2]} 18... Nxd4 {[%clk 0:02:13.7]} 19. Qxd5+ {[%clk
0:01:59.8]} 19... Qxd5 {[%clk 0:02:11.3]} 20. Nxd5 {[%clk 0:02:00.3]} 20... Ne2+
{[%clk 0:02:10.8]} 21. Kf1 {[%clk 0:01:45.3]} 21... Nxc1 {[%clk 0:02:08.5]} 22.
Rxc1 {[%clk 0:01:45.9]} 22... Rad8 {[%clk 0:01:41.8]} 23. Ne3 {[%clk 0:01:35.3]}
23... Rd2 {[%clk 0:01:35.8]} 24. Rc7 {[%clk 0:01:28.9]} 24... Rxb2 {[%clk
0:01:34.4]} 25. h4 {[%clk 0:01:29.4]} 25... Rxa2 {[%clk 0:01:12.1]} 26. Rxb7
{[%clk 0:01:28.9]} 26... Rc8 {[%clk 0:01:09.2]} 27. Kg1 {[%clk 0:01:28.6]} 27...
a5 {[%clk 0:01:03.9]} 28. Nf5 {[%clk 0:01:26.9]} 28... Bf8 {[%clk 0:01:03.3]}
29. hxg5 {[%clk 0:01:23.9]} 29... fxg5 {[%clk 0:01:04.2]} 30. Rd7 {[%clk
0:00:39.3]} 30... a4 {[%clk 0:01:00.7]} 31. Ne3 {[%clk 0:00:31.2]} 31... a3
{[%clk 0:00:58.2]} 32. Nd5 {[%clk 0:00:31.5]} 32... Rc6 {[%clk 0:00:49.6]} 33.
Be5 {[%clk 0:00:27.1]} 33... Bc5 {[%clk 0:00:33.8]} 34. Nf6+ {[%clk 0:00:18.2]}
34... Rxf6 {[%clk 0:00:33.4]} 35. Bxf6 {[%clk 0:00:18.7]} 35... Rxf2 {[%clk
0:00:33.4]} 36. Rd5 {[%clk 0:00:11.3]} 36... Rf5+ {[%clk 0:00:17.4]} 37. Rxc5
{[%clk 0:00:09.8]} 37... Rxc5 {[%clk 0:00:17.4]} 0-1

[Event "*** Titled Tuesday Blitz"]
[Site "Chess.com"]
[Date "2020.10.20"]
[Round "4"]
[White "TrimitziosP7"]
[Black "SARGISMV"]
[Result "1-0"]
[WhiteElo "2766"]
[BlackElo "2508"]
[TimeControl "180+1"]
[EndTime "10:41:15 PDT"]
[Termination "TrimitziosP7 won on time"]

1. d4 {[%clk 0:03:00.9]} 1... c5 {[%clk 0:02:59.5]} 2. dxc5 {[%clk 0:02:59.2]}
2... Na6 {[%clk 0:02:58.3]} 3. Nc3 {[%clk 0:02:54.2]} 3... Nxc5 {[%clk 0:02:57]}
4. Bf4 {[%clk 0:02:51]} 4... Nf6 {[%clk 0:02:54.4]} 5. f3 {[%clk 0:02:41.1]}
5... d6 {[%clk 0:02:46.3]} 6. e4 {[%clk 0:02:37.9]} 6... g6 {[%clk 0:02:46.1]}
7. Qd2 {[%clk 0:02:35.8]} 7... Bg7 {[%clk 0:02:45.4]} 8. O-O-O {[%clk
0:02:35.8]} 8... Qa5 {[%clk 0:02:40.1]} 9. Kb1 {[%clk 0:02:32.2]} 9... O-O
{[%clk 0:02:37]} 10. Nge2 {[%clk 0:02:25.6]} 10... b5 {[%clk 0:02:30.1]} 11. Nd4
{[%clk 0:02:12.1]} 11... b4 {[%clk 0:02:27.5]} 12. Nd5 {[%clk 0:02:07.1]} 12...
Nxd5 {[%clk 0:02:24.9]} 13. exd5 {[%clk 0:02:08]} 13... Qb6 {[%clk 0:01:54.6]}
14. Nc6 {[%clk 0:02:00.7]} 14... e5 {[%clk 0:01:51.2]} 15. Bh6 {[%clk
0:01:56.3]} 15... a5 {[%clk 0:01:48.9]} 16. Bxg7 {[%clk 0:01:52.6]} 16... Kxg7
{[%clk 0:01:49.3]} 17. h4 {[%clk 0:01:51.6]} 17... h6 {[%clk 0:01:49.4]} 18. g4
{[%clk 0:01:47.9]} 18... a4 {[%clk 0:01:38.1]} 19. Qxb4 {[%clk 0:01:39.5]} 19...
Qc7 {[%clk 0:01:32.4]} 20. Qc3 {[%clk 0:01:29.1]} 20... Bd7 {[%clk 0:01:23.4]}
21. Bb5 {[%clk 0:01:22.2]} 21... Qb6 {[%clk 0:01:14.8]} 22. Bc4 {[%clk
0:01:17.1]} 22... Bxc6 {[%clk 0:01:11.1]} 23. dxc6 {[%clk 0:01:09.5]} 23... Rfd8
{[%clk 0:01:04.1]} 24. g5 {[%clk 0:01:01]} 24... h5 {[%clk 0:01:03]} 25. Rxd6
{[%clk 0:00:57.1]} 25... Re8 {[%clk 0:00:49.4]} 26. Re1 {[%clk 0:00:50.9]} 26...
a3 {[%clk 0:00:27.4]} 27. b3 {[%clk 0:00:48.6]} 27... Na4 {[%clk 0:00:23.2]} 28.
Qe3 {[%clk 0:00:44.8]} 28... Qb4 {[%clk 0:00:21.7]} 29. Rd7 {[%clk 0:00:41.5]}
29... Nc3+ {[%clk 0:00:19.6]} 30. Ka1 {[%clk 0:00:37.1]} 30... Rf8 {[%clk
0:00:12.1]} 31. Qxe5+ {[%clk 0:00:34.1]} 31... Kg8 {[%clk 0:00:12.4]} 32. Qf6
{[%clk 0:00:29.1]} 32... Nd5 {[%clk 0:00:05.8]} 33. c3 {[%clk 0:00:28.4]} 33...
Qxc3+ {[%clk 0:00:04.1]} 34. Qxc3 {[%clk 0:00:25.9]} 34... Nxc3 {[%clk 0:00:05]}
35. Ree7 {[%clk 0:00:25.7]} 35... Rac8 {[%clk 0:00:02.7]} 36. c7 {[%clk
0:00:22.5]} 1-0